bitfinex/quotes_BTCUSD_20250131
["timestamp","ask_amount","ask_price","bid_price","bid_amount"]
[1738350035525,0.00025642,102790.0,102780.0,0.8198]
[1738350035730,0.2446436,102790.0,102780.0,0.1278]
[1738350035945,0.24342758,102790.0,102780.0,0.1278]
[1738350036158,0.00125642,102790.0,102780.0,0.6708]
[1738350036375,0.00125642,102790.0,102780.0,0.6768]
[1738350036583,0.00116778,102790.0,102780.0,0.6768]
[1738350036783,0.00116778,102790.0,102780.0,0.822742]
[1738350037467,0.00116778,102790.0,102780.0,0.6768]
[1738350037654,0.24555511,102790.0,102780.0,0.1348]
[1738350037881,0.24433894,102790.0,102780.0,0.1348]
[1738350038540,0.00116778,102790.0,102780.0,0.1348]
[1738350038714,0.14831188,102790.0,102780.0,0.1348]
[1738350038933,0.31391649,102790.0,102780.0,0.1348]
[1738350039101,0.00116778,102790.0,102780.0,0.430742]
[1738350039307,0.00116778,102790.0,102780.0,0.453742]
[1738350039506,0.00116778,102790.0,102780.0,0.74217029]
[1738350039760,0.00025662,102800.0,102790.0,0.271128]
[1738350039967,0.00025662,102800.0,102790.0,1.00772792]
[1738350040098,0.00025662,102800.0,102790.0,1.27455629]
[1738350040299,0.00025662,102800.0,102790.0,1.30455629]
[1738350040501,0.01692287,102820.0,102810.0,0.4224]
[1738350040744,0.01692287,102820.0,102810.0,1.06164316]
[1738350041092,0.01692287,102820.0,102810.0,0.9644]
[1738350041295,0.01692287,102820.0,102810.0,0.8185]
[1738350041539,0.01692287,102820.0,102810.0,0.9874]
[1738350042010,0.01692287,102820.0,102810.0,0.9904]
[1738350042218,0.01692287,102820.0,102810.0,0.8445]
[1738350042421,0.26005203,102820.0,102810.0,0.1295]
[1738350042635,0.26005203,102820.0,102810.0,0.0842]
[1738350042871,0.11416603,102820.0,102810.0,0.0892]
[1738350043034,0.26005203,102820.0,102810.0,0.0892]
[1738350043234,0.11416603,102820.0,102810.0,0.0892]
[1738350043461,0.26005203,102820.0,102810.0,0.0892]
[1738350044173,1.29924478,102820.0,102810.0,0.0892]
[1738350044422,1.29924478,102820.0,102810.0,0.005]
[1738350044837,1.30024478,102820.0,102810.0,0.005]
[1738350045039,1.21588828,102820.0,102810.0,0.005]
[1738350045654,1.21588828,102820.0,102790.0,0.2727]
[1738350045655,0.145914,102800.0,102790.0,0.2727]
[1738350045864,1.48982825,102810.0,102790.0,0.2727]
[1738350046126,0.55286887,102820.0,102790.0,0.418627]
[1738350046344,0.340435,102810.0,102790.0,0.418627]
[1738350046548,1.29527125,102810.0,102790.0,0.2727]
[1738350046910,1.10073825,102810.0,102790.0,0.418625]
[1738350047315,1.10073825,102810.0,102790.0,0.422625]
[1738350047521,0.01692287,102820.0,102810.0,0.15]
[1738350047721,0.01692287,102820.0,102810.0,0.3189]
[1738350048113,0.01692287,102820.0,102810.0,0.4016]
[1738350048994,0.01892287,102820.0,102810.0,0.4016]
[1738350049505,0.01892287,102820.0,102810.0,0.9486]
[1738350049939,0.03552392,102820.0,102810.0,0.7797]
[1738350050161,0.16480887,102820.0,102810.0,0.7797]
[1738350050345,0.16480887,102820.0,102810.0,0.6297]
[1738350050550,0.01892287,102820.0,102810.0,0.6297]
[1738350050757,0.26205203,102820.0,102810.0,0.6297]
[1738350051089,0.26205203,102820.0,102810.0,0.547]
[1738350051308,0.35940879,102820.0,102810.0,0.547]
[1738350051531,0.35740879,102820.0,102810.0,0.547]
[1738350051975,0.26005203,102820.0,102810.0,0.55]
[1738350052173,0.26005203,102820.0,102810.0,0.545]
[1738350053124,0.26005203,102820.0,102810.0,0.55]
[1738350054664,0.26005203,102820.0,102810.0,0.547]
[1738350054879,0.26005203,102820.0,102810.0,0.005]
[1738350055078,0.26105203,102820.0,102810.0,0.005]
[1738350055663,0.26105203,102820.0,102810.0,0.0055]
[1738350056042,0.26005203,102820.0,102810.0,0.0055]
[1738350056444,0.35940879,102820.0,102810.0,0.0055]
[1738350056689,0.36700879,102820.0,102810.0,0.0055]
[1738350057141,0.36700879,102820.0,102810.0,0.0005]
[1738350058152,0.37700879,102820.0,102810.0,0.0015]
[1738350058853,0.52700879,102820.0,102810.0,0.0015]
[1738350059057,0.53800879,102820.0,102810.0,0.0015]
[1738350059307,0.54200879,102820.0,102810.0,0.0015]
[1738350059513,0.54200879,102820.0,102810.0,0.0005]
[1738350060906,0.53800879,102820.0,102810.0,0.0005]
[1738350061105,0.43165203,102820.0,102810.0,0.0025]
[1738350061363,0.27405203,102820.0,102810.0,0.0025]
[1738350061497,0.12216603,102820.0,102810.0,0.0015]
[1738350061736,0.02492287,102820.0,102810.0,0.1714]
[1738350061949,0.03392287,102820.0,102810.0,1.34169361]
[1738350062156,0.03392287,102820.0,102810.0,1.316]
[1738350062352,0.03392287,102820.0,102810.0,1.143]
[1738350062601,0.01692287,102820.0,102810.0,1.141]
[1738350062805,0.01692287,102820.0,102810.0,1.1451]
[1738350063062,0.02992287,102820.0,102810.0,1.58042829]
[1738350063260,0.02992287,102820.0,102810.0,1.60354189]
[1738350063487,0.02992287,102820.0,102810.0,1.315]
[1738350063829,0.02992287,102820.0,102810.0,1.60342829]
[1738350064255,0.01692287,102820.0,102810.0,1.60242829]
[1738350064459,0.01792287,102820.0,102810.0,1.60742829]
[1738350064667,0.01892287,102820.0,102810.0,1.63459562]
[1738350065077,0.01892287,102820.0,102810.0,1.34616733]
[1738350065265,0.01892287,102820.0,102810.0,1.63459562]
[1738350066054,0.01892287,102820.0,102810.0,1.61642829]
[1738350066657,0.01892287,102820.0,102810.0,0.75052829]
[1738350067022,0.00025642,102840.0,102830.0,0.421771]
[1738350067218,0.00025642,102840.0,102830.0,0.2759]
[1738350067495,0.24335658,102840.0,102830.0,0.1259]
[1738350067872,0.1945,102830.0,102810.0,0.9212]
[1738350068079,0.24312916,102820.0,102810.0,0.8664]
[1738350068283,0.24312916,102820.0,102810.0,0.0005]
[1738350068896,0.09724316,102820.0,102810.0,0.0005]
[1738350069150,0.00756,102830.0,102820.0,0.0764]
[1738350069326,0.09845891,102830.0,102820.0,0.372286]
[1738350069551,0.00781642,102840.0,102820.0,0.466099]
[1738350069695,0.09749958,102840.0,102820.0,0.660603]
[1738350069908,0.24335958,102840.0,102820.0,0.1257]
[1738350070107,0.43784658,102840.0,102820.0,0.1257]
[1738350070345,0.145871,102830.0,102820.0,0.2757]
[1738350070572,0.24311416,102830.0,102820.0,0.2757]
[1738350070781,0.24311416,102830.0,102820.0,0.1257]
[1738350070997,0.24311416,102830.0,102820.0,0.0764]
[1738350071417,0.24311416,102830.0,102820.0,0.0804]
[1738350072120,0.09724316,102830.0,102820.0,0.0804]
[1738350072320,0.09845891,102830.0,102820.0,0.0804]
[1738350073175,0.14612642,102840.0,102820.0,0.25506647]
[1738350073312,0.25092958,102840.0,102820.0,0.25506447]
[1738350073517,0.00025642,102840.0,102820.0,0.6407586]
[1738350073724,0.00025642,102840.0,102820.0,0.96797647]
[1738350073944,0.00025642,102840.0,102830.0,0.145871]
[1738350074155,0.00025642,102840.0,102830.0,1.49955613]
[1738350074357,0.00025642,102840.0,102830.0,1.59679929]
[1738350074715,0.00025642,102840.0,102830.0,1.308371]
[1738350075119,0.00025642,102840.0,102830.0,1.1395]
[1738350075361,0.0001678,102840.0,102830.0,1.12283333]
[1738350075565,0.24326796,102840.0,102830.0,0.9895]
[1738350075765,0.145878,102830.0,102810.0,1.547]
[1738350076096,0.3435208,102840.0,102830.0,0.003]
[1738350076391,0.3405208,102840.0,102830.0,0.003]
[1738350076606,0.3405208,102840.0,102810.0,1.692898]
[1738350076795,0.41447789,102840.0,102830.0,0.006]
[1738350076955,0.1535868,102840.0,102810.0,1.887418]
[1738350077151,0.0077278,102840.0,102820.0,0.53491]
[1738350077356,0.3540678,102840.0,102820.0,0.31888]
[1738350077599,0.0077278,102840.0,102820.0,0.513392]
[1738350077812,0.0077278,102840.0,102820.0,0.61073976]
[1738350077968,0.0077278,102840.0,102820.0,0.80524576]
[1738350078168,0.0077278,102840.0,102830.0,0.145871]
[1738350078372,0.0001678,102840.0,102830.0,0.145871]
[1738350078580,0.0001678,102840.0,102820.0,0.80524376]
[1738350078792,0.10062655,102840.0,102820.0,0.29588]
[1738350079033,0.10062655,102840.0,102820.0,0.684898]
[1738350079234,0.09862655,102840.0,102820.0,0.684898]
[1738350079404,0.0011678,102840.0,102830.0,0.151871]
[1738350079629,0.0011678,102840.0,102830.0,0.154871]
[1738350080057,0.0001678,102840.0,102830.0,0.225471]
[1738350080225,0.0011678,102840.0,102830.0,0.225471]
[1738350080454,0.0001678,102840.0,102830.0,0.225471]
[1738350080679,0.0001678,102840.0,102830.0,0.722371]
[1738350080888,0.0011678,102840.0,102830.0,0.728371]
[1738350081091,0.0011678,102840.0,102830.0,0.725371]
[1738350081892,0.0011678,102840.0,102830.0,0.78818367]
[1738350082127,0.0011678,102840.0,102830.0,1.60529929]
[1738350082335,0.0011678,102840.0,102830.0,2.69658442]
[1738350082557,0.0001221,102850.0,102840.0,0.82872726]
[1738350082762,0.00025642,102870.0,102860.0,0.63751413]
[1738350082962,0.00025642,102870.0,102860.0,0.73487089]
[1738350083549,0.00025642,102870.0,102860.0,1.60077089]
[1738350083750,0.00025642,102870.0,102860.0,2.57511405]
[1738350083974,0.00025642,102870.0,102860.0,2.47787089]
[1738350084205,0.00025642,102870.0,102860.0,2.57511405]
[1738350084407,0.00025642,102870.0,102860.0,2.59511405]
[1738350085000,0.00025642,102870.0,102860.0,2.38392892]
[1738350085974,0.00025642,102870.0,102860.0,2.67974915]
[1738350086226,0.00025642,102870.0,102860.0,2.68474915]
[1738350086641,0.00025642,102870.0,102860.0,2.67974915]
[1738350086777,0.00025642,102870.0,102860.0,2.67974204]
[1738350086974,0.00025642,102870.0,102860.0,2.68774204]
[1738350087444,0.00025642,102870.0,102860.0,0.94274204]
[1738350088322,0.00025642,102870.0,102860.0,0.94674204]
[1738350089190,0.00025642,102870.0,102860.0,0.65292892]
[1738350089616,0.00025642,102870.0,102860.0,0.94674204]
[1738350089823,0.00025642,102870.0,102860.0,0.65292892]
[1738350090463,0.00025642,102870.0,102860.0,0.94674204]
[1738350091857,0.00025642,102870.0,102860.0,0.435329]
[1738350092071,0.24331458,102870.0,102860.0,0.162]
[1738350092360,1.19815083,102870.0,102860.0,0.162]
[1738350092759,1.05233583,102870.0,102860.0,0.162]
[1738350092969,0.95509267,102870.0,102860.0,0.307829]
[1738350093166,0.95509267,102870.0,102860.0,0.162]
[1738350093167,1.05233583,102870.0,102860.0,0.162]
[1738350093381,1.19815083,102870.0,102860.0,0.15]
[1738350093597,1.58932071,102870.0,102860.0,0.15]
[1738350093815,1.29650759,102870.0,102860.0,0.154]
[1738350093986,1.05333583,102870.0,102860.0,0.154]
[1738350094218,0.10605958,102870.0,102860.0,0.299829]
[1738350094438,1.06089583,102870.0,102860.0,0.154]
[1738350094890,0.10605958,102870.0,102860.0,0.299829]
[1738350095209,0.00025642,102870.0,102860.0,0.154]
[1738350095538,1.05233583,102870.0,102850.0,0.673684]
[1738350095914,1.14969259,102870.0,102850.0,0.868141]
[1738350096107,1.14969259,102870.0,102860.0,0.003]
[1738350096305,1.19815083,102870.0,102860.0,0.003]
[1738350096574,1.19815083,102870.0,102860.0,0.008]
[1738350096778,0.145829,102860.0,102850.0,0.3334]
[1738350096988,0.24428754,102860.0,102850.0,0.3474]
[1738350097183,0.69688528,102860.0,102850.0,0.0235]
[1738350097383,0.78424204,102860.0,102850.0,0.0145]
[1738350097539,0.25063216,102860.0,102850.0,0.0145]
[1738350097968,0.26063216,102860.0,102850.0,0.0145]
[1738350098272,0.55444528,102860.0,102850.0,0.0095]
[1738350098465,0.54444528,102860.0,102850.0,0.0095]
[1738350098689,0.65180204,102860.0,102850.0,0.0096218]
[1738350099065,0.25063216,102860.0,102850.0,0.0096218]
[1738350100412,0.25063216,102860.0,102850.0,0.0106218]
[1738350100628,0.24307216,102860.0,102850.0,0.0096218]
[1738350100840,0.25863216,102860.0,102850.0,0.0106218]
[1738350101049,0.008,102860.0,102850.0,0.1621218]
[1738350101252,0.008,102860.0,102850.0,0.3079648]
[1738350101872,0.008,102860.0,102850.0,0.3881648]
[1738350102089,0.00025642,102870.0,102860.0,0.145829]
[1738350102294,0.09749958,102870.0,102860.0,0.145829]
[1738350102691,0.145829,102860.0,102850.0,0.0923218]
[1738350102936,1.19790841,102860.0,102850.0,0.0913218]
[1738350103159,0.48648518,102870.0,102850.0,0.0903218]
[1738350103160,0.14807142,102870.0,102850.0,0.0903218]
[1738350103362,0.24531458,102870.0,102850.0,0.45423858]
[1738350103575,0.09949958,102870.0,102850.0,0.4356208]
[1738350103789,0.00025642,102870.0,102850.0,0.6300658]
[1738350104001,0.00025642,102870.0,102860.0,0.366029]
[1738350105063,0.00025642,102870.0,102860.0,2.57918528]
[1738350105260,0.00025642,102870.0,102860.0,2.67654204]
[1738350105466,0.00025642,102870.0,102860.0,2.38272892]
[1738350105678,0.00125642,102870.0,102860.0,2.67654204]
[1738350106090,0.00025642,102870.0,102860.0,2.67654204]
[1738350106495,0.00025642,102870.0,102860.0,2.67954204]
[1738350106701,0.00025642,102870.0,102860.0,2.57631659]
[1738350106906,0.00025642,102870.0,102860.0,2.57831659]
[1738350107113,0.00025642,102870.0,102860.0,2.57331659]
[1738350107324,0.00025642,102870.0,102860.0,2.57831659]
[1738350107520,0.00025642,102870.0,102860.0,2.58731659]
[1738350108639,0.00025642,102870.0,102860.0,2.58231659]
[1738350109076,0.00025642,102870.0,102860.0,2.58731659]
[1738350109719,0.0002562,102900.0,102890.0,0.423786]
[1738350109931,0.0002562,102900.0,102890.0,2.51999543]
[1738350111189,0.0002562,102900.0,102890.0,2.42775227]
[1738350111393,0.0002562,102900.0,102890.0,2.42275227]
[1738350111606,0.0002562,102900.0,102890.0,2.189786]
[1738350111821,0.09871413,102900.0,102890.0,0.0899]
[1738350112035,0.10049936,102900.0,102890.0,0.235686]
[1738350112248,0.10049936,102900.0,102890.0,0.385686]
[1738350112466,0.0002562,102900.0,102890.0,0.61296878]
[1738350112679,0.0002562,102900.0,102890.0,0.235686]
[1738350112906,0.0002562,102900.0,102890.0,0.240686]
[1738350113126,0.0002562,102900.0,102890.0,0.57227367]
[1738350113339,0.0002562,102900.0,102890.0,0.74563043]
[1738350113549,0.0002562,102900.0,102890.0,0.73863043]
[1738350113763,0.0002562,102900.0,102890.0,0.427686]
[1738350113950,0.09749936,102900.0,102890.0,0.0909]
[1738350114195,0.09749936,102900.0,102890.0,0.378686]
[1738350114397,0.09871422,102900.0,102890.0,0.0829]
[1738350114623,0.09749936,102900.0,102890.0,0.011]
[1738350114838,0.09749936,102900.0,102890.0,0.297786]
[1738350115255,0.0002562,102900.0,102890.0,0.60873043]
[1738350115491,0.0002562,102900.0,102890.0,0.69173043]
[1738350115694,0.0002562,102900.0,102890.0,0.68973043]
[1738350115901,0.0002562,102900.0,102890.0,0.69373043]
[1738350116112,0.0002562,102900.0,102890.0,0.84787359]
[1738350116529,0.0002562,102900.0,102890.0,0.83887359]
[1738350116728,0.0002562,102900.0,102890.0,0.84787359]
[1738350117342,0.0002562,102900.0,102890.0,1.71377359]
[1738350117548,0.0002562,102900.0,102890.0,1.73377359]
[1738350118191,0.01455981,102950.0,102940.0,0.34058767]
[1738350118409,0.01455981,102950.0,102940.0,0.48630267]
[1738350118410,0.11180297,102950.0,102940.0,0.48630267]
[1738350118626,0.11180297,102950.0,102940.0,0.295715]
[1738350118825,0.11180297,102950.0,102930.0,0.389815]
[1738350119031,0.00120547,102940.0,102930.0,0.394094]
[1738350119282,0.11180297,102950.0,102930.0,0.68431]
[1738350119526,0.11180297,102950.0,102940.0,0.001]
[1738350119527,0.26370944,102950.0,102940.0,0.001]
[1738350119813,1.21734022,102950.0,102940.0,0.001]
[1738350120073,0.145717,102940.0,102920.0,0.4065]
[1738350120285,0.003,102940.0,102930.0,0.145729]
[1738350120487,0.10024316,102940.0,102920.0,0.552243]
[1738350120692,0.003,102940.0,102930.0,0.14573]
[1738350121054,0.003,102940.0,102930.0,0.48631767]
[1738350121256,0.003,102940.0,102930.0,0.50931767]
[1738350121452,0.003,102940.0,102930.0,1.05131767]
[1738350121676,0.01455981,102950.0,102940.0,0.295715]
[1738350121894,0.01468161,102950.0,102940.0,0.56410196]
[1738350122098,0.01468161,102950.0,102940.0,0.48830267]
[1738350122323,0.01468161,102950.0,102940.0,0.151]
[1738350122324,0.11192477,102950.0,102940.0,0.151]
[1738350122501,0.11192477,102950.0,102930.0,0.882023]
[1738350122702,0.01468161,102950.0,102940.0,0.145715]
[1738350122923,0.01468161,102950.0,102930.0,1.07632]
[1738350123118,0.01468161,102950.0,102940.0,0.145715]
[1738350123324,0.11192477,102950.0,102940.0,0.008]
[1738350123501,1.06796649,102950.0,102940.0,0.008]
[1738350123700,1.06676102,102950.0,102940.0,0.008]
[1738350124073,0.25762577,102950.0,102940.0,0.008]
[1738350124249,0.11192477,102950.0,102940.0,0.153715]
[1738350124579,0.11192477,102950.0,102940.0,0.008]
[1738350124580,0.15712444,102950.0,102940.0,0.008]
[1738350124790,0.30403091,102950.0,102940.0,0.008]
[1738350124989,0.30282544,102950.0,102940.0,0.008]
[1738350125434,0.11192477,102950.0,102940.0,0.008]
[1738350125633,0.25762577,102950.0,102940.0,0.002]
[1738350125852,0.11192477,102950.0,102940.0,0.147715]
[1738350126163,0.11192477,102950.0,102940.0,0.155715]
[1738350126402,0.01468161,102950.0,102940.0,0.49630267]
[1738350126611,0.01468161,102950.0,102940.0,0.305715]
[1738350126826,0.11313024,102950.0,102940.0,0.16]
[1738350126998,0.11313024,102950.0,102940.0,0.303715]
[1738350127204,0.11313024,102950.0,102940.0,0.298715]
[1738350127612,0.11313024,102950.0,102940.0,0.153]
[1738350127818,0.11313024,102950.0,102930.0,0.542]
[1738350128026,0.11313024,102950.0,102940.0,0.148715]
[1738350128255,0.11313024,102950.0,102940.0,0.003]
[1738350128683,0.01468161,102950.0,102940.0,0.156715]
[1738350128899,0.01468161,102950.0,102940.0,0.008]
[1738350129104,0.11192477,102950.0,102940.0,0.008]
[1738350129349,0.11192477,102950.0,102940.0,0.695715]
[1738350129776,0.11192477,102950.0,102940.0,0.79307176]
[1738350130005,0.11192477,102950.0,102940.0,0.695715]
[1738350130446,0.01468161,102950.0,102940.0,0.695715]
[1738350130665,0.01468161,102950.0,102940.0,0.88630267]
[1738350130873,0.01046711,102950.0,102940.0,1.28944583]
[1738350131084,0.00873964,102950.0,102940.0,2.60780259]
[1738350131293,9e-07,102960.0,102950.0,0.471401]
[1738350131504,9e-07,102960.0,102950.0,0.73923183]
[1738350131711,9e-07,102960.0,102950.0,0.83658859]
[1738350131921,9e-07,102960.0,102950.0,0.73923183]
[1738350132132,9e-07,102960.0,102950.0,0.9498195]
[1738350132344,9e-07,102960.0,102950.0,2.6928195]
[1738350132571,9e-07,102960.0,102950.0,2.50223183]
[1738350132778,9e-07,102960.0,102950.0,2.48223183]
[1738350132980,9e-07,102960.0,102950.0,2.60858859]
[1738350133194,9e-07,102960.0,102950.0,2.59958859]
[1738350133405,9e-07,102960.0,102950.0,2.60958859]
[1738350133674,9e-07,102960.0,102950.0,2.61858859]
[1738350133867,0.153189,103010.0,102980.0,0.145648]
[1738350134101,0.153189,103010.0,102990.0,0.194193]
[1738350134102,0.10480316,103010.0,102990.0,0.194193]
[1738350134323,0.09724316,103010.0,102990.0,0.53498391]
[1738350134530,0.08724316,103010.0,103000.0,0.145631]
[1738350134739,0.08724316,103010.0,103000.0,0.04417572]
[1738350134961,0.08724316,103010.0,103000.0,0.18980672]
[1738350135170,0.08724316,103010.0,102990.0,0.533999]
[1738350135395,0.08724316,103010.0,103000.0,0.145631]
[1738350135813,0.351678,103030.0,103000.0,0.339792]
[1738350136018,0.09724316,103020.0,103010.0,0.145616]
[1738350136227,0.4659593,103050.0,103010.0,0.33620367]
[1738350136432,0.09724316,103040.0,103030.0,0.145588]
[1738350136634,0.09724316,103040.0,103020.0,0.77296967]
[1738350136840,0.09724316,103040.0,103030.0,0.33617567]
[1738350137094,0.09724316,103040.0,103030.0,0.145588]
[1738350137302,0.0156013,103050.0,103030.0,0.33969]
[1738350137529,0.11284446,103050.0,103030.0,0.33969]
[1738350137802,0.09724316,103040.0,103030.0,0.145588]
[1738350138442,0.09724316,103040.0,103020.0,0.857738]
[1738350138592,0.09724316,103040.0,103030.0,0.148588]
[1738350138802,1.0156013,103050.0,103030.0,0.148588]
[1738350139007,1.0156013,103050.0,103040.0,0.145574]
[1738350139190,1.0156013,103050.0,103040.0,0.33616167]
[1738350139590,1.0156013,103050.0,103040.0,0.46546167]
[1738350139817,1.0156013,103050.0,103040.0,0.73581843]
[1738350140025,1.0156013,103050.0,103040.0,0.83306159]
[1738350140219,1.0156013,103050.0,103040.0,0.73570483]
[1738350140419,1.0156013,103050.0,103040.0,0.274874]
[1738350140678,1.0156013,103050.0,103040.0,0.153574]
[1738350140864,1.0156013,103050.0,103040.0,0.34416167]
[1738350141242,1.0156013,103050.0,103040.0,0.34616167]
[1738350141850,1.0156013,103050.0,103040.0,0.155574]
[1738350142522,1.0156013,103050.0,103040.0,0.147574]
[1738350142855,1.0156013,103050.0,103040.0,0.156574]
[1738350143057,1.0156013,103050.0,103040.0,0.145574]
[1738350143381,1.11284446,103050.0,103040.0,0.012]
[1738350143583,2.16503747,103050.0,103040.0,0.012]
[1738350143965,2.06768071,103050.0,103030.0,0.52913933]
[1738350144171,2.06768071,103050.0,103040.0,0.145574]
[1738350144364,1.11284446,103050.0,103040.0,0.145574]
[1738350144571,1.11284446,103050.0,103040.0,0.148574]
[1738350144779,1.11275594,103050.0,103040.0,0.148574]
[1738350144996,1.01551278,103050.0,103040.0,0.148574]
[1738350145409,1.01563438,103050.0,103040.0,0.148574]
[1738350145994,1.01563438,103050.0,103040.0,0.145574]
[1738350146401,1.11287754,103050.0,103040.0,0.146574]
[1738350146600,2.06771379,103050.0,103040.0,0.001]
[1738350146964,2.06771379,103050.0,103040.0,0.146574]
[1738350147156,2.06771379,103050.0,103040.0,0.001]
[1738350147397,2.55386146,103050.0,103040.0,0.001]
[1738350147601,2.59438146,103050.0,103040.0,0.001]
[1738350148252,2.55486146,103050.0,103040.0,0.007]
[1738350148468,2.57238146,103050.0,103040.0,0.007]
[1738350148687,0.533836,103030.0,103010.0,0.00025536]
[1738350148912,0.24284516,103020.0,103010.0,0.00025536]
[1738350149118,0.58343283,103020.0,103010.0,0.00025536]
[1738350149336,0.40036516,103020.0,103010.0,0.00025536]
[1738350151530,0.59095283,103020.0,103010.0,0.00025536]
[1738350151752,0.61051032,103020.0,103010.0,0.00025536]
[1738350152162,0.61051032,103020.0,103010.0,0.00725536]
[1738350152163,0.67541032,103020.0,103010.0,0.00725536]
[1738350152516,0.67441032,103020.0,103010.0,0.00025536]
[1738350152733,0.67441032,103020.0,103010.0,0.00425536]
[1738350152953,0.66441032,103020.0,103010.0,0.00425536]
[1738350153180,0.68441032,103020.0,103010.0,0.00425536]
[1738350153606,0.69841032,103020.0,103010.0,0.00525536]
[1738350153804,0.68841032,103020.0,103010.0,0.00525536]
[1738350154161,0.339915,102970.0,102950.0,0.0469]
[1738350154361,0.10476316,102960.0,102950.0,0.0469]
[1738350155188,1.39587408,102960.0,102950.0,0.0469]
[1738350155389,0.145701,102950.0,102940.0,0.00025557]
[1738350155593,0.09724316,102950.0,102940.0,0.00025557]
[1738350156000,0.24294416,102950.0,102940.0,0.00025557]
[1738350156762,0.24294416,102950.0,102940.0,0.00325557]
[1738350157177,0.25046416,102950.0,102940.0,0.00325557]
[1738350157383,0.25046416,102950.0,102940.0,0.00425557]
[1738350157776,0.24996416,102950.0,102940.0,0.00425557]
[1738350158152,0.44055183,102950.0,102940.0,0.00425557]
[1738350158386,0.53790859,102950.0,102940.0,0.00425557]
[1738350158815,0.6878403,102950.0,102940.0,0.00425557]
[1738350159147,0.6878403,102950.0,102940.0,0.00025557]
[1738350159353,0.6938403,102950.0,102940.0,0.00125557]
[1738350159642,0.7298403,102950.0,102940.0,0.00125557]
[1738350159822,0.7238403,102950.0,102940.0,0.00025557]
[1738350160028,0.7298403,102950.0,102940.0,0.00125557]
[1738350160492,0.7238403,102950.0,102940.0,0.00125557]
[1738350160858,0.7238403,102950.0,102940.0,0.00173271]
[1738350161716,0.7108403,102950.0,102940.0,0.00073271]
[1738350162120,0.7288403,102950.0,102940.0,0.00273271]
[1738350162600,0.7198403,102950.0,102940.0,0.00173271]
[1738350162936,0.8015403,102950.0,102940.0,7.1e-07]
[1738350163149,0.8105403,102950.0,102940.0,7.1e-07]
[1738350163345,0.61995263,102950.0,102940.0,7.1e-07]
[1738350164347,0.61118847,102950.0,102940.0,7.1e-07]
[1738350164952,0.66046659,102950.0,102940.0,7.1e-07]
[1738350165152,0.69990534,102930.0,102920.0,0.018753]
[1738350165415,1.77154224,102930.0,102920.0,0.01923413]
[1738350166278,1.58095457,102930.0,102920.0,0.01923413]
[1738350166496,1.60095457,102930.0,102920.0,0.01923413]
[1738350167355,1.79154224,102930.0,102920.0,0.01923413]
[1738350167574,1.60095457,102930.0,102920.0,0.01923413]
[1738350168149,0.178758,102910.0,102900.0,0.00025536]
[1738350168364,1.49316888,102910.0,102900.0,0.00073669]
[1738350169965,1.63316888,102910.0,102900.0,0.00073669]
[1738350170172,1.65316888,102910.0,102900.0,0.00073669]
[1738350171005,1.66316888,102910.0,102900.0,0.00073669]
[1738350171412,1.65316888,102910.0,102900.0,0.00073669]
[1738350171620,1.66316888,102910.0,102900.0,0.00073669]
[1738350172869,1.65316888,102910.0,102900.0,0.00073669]
[1738350173190,1.66216888,102910.0,102900.0,0.00073669]
[1738350173613,1.67216888,102910.0,102900.0,0.00073669]
[1738350173817,1.67916888,102910.0,102900.0,0.00073669]
[1738350174229,1.55442508,102910.0,102900.0,0.00073669]
[1738350174609,1.37139741,102910.0,102900.0,0.00073669]
[1738350175571,1.39439741,102910.0,102900.0,0.00073669]
[1738350175885,1.43498508,102910.0,102900.0,0.00123669]
[1738350176092,1.39439741,102910.0,102900.0,0.00123669]
[1738350176364,1.49126838,102910.0,102900.0,0.00123669]
[1738350177269,0.25851537,102910.0,102900.0,0.07723669]
[1738350177473,0.11324316,102910.0,102900.0,0.12393669]
[1738350177679,0.016,102910.0,102900.0,0.46034129]
[1738350177889,0.016,102910.0,102900.0,0.69524912]
[1738350178105,0.0001221,102930.0,102920.0,0.4611766]
[1738350178318,0.0001221,102930.0,102920.0,0.6111766]
[1738350178758,0.0001221,102930.0,102920.0,0.420544]
[1738350179827,0.24309526,102930.0,102920.0,0.1248]
[1738350180011,0.30626409,102930.0,102920.0,0.1248]
[1738350180250,0.24309526,102930.0,102920.0,0.1248]
[1738350180472,0.25065526,102930.0,102920.0,0.1248]
[1738350180877,0.25065526,102930.0,102920.0,0.12505641]
[1738350181298,0.25065526,102930.0,102920.0,0.04695641]
[1738350181506,0.25065526,102930.0,102920.0,0.00025641]
[1738350181936,0.09736526,102930.0,102920.0,0.22290041]
[1738350182144,0.0001221,102930.0,102920.0,0.46003301]
[1738350182612,0.0001221,102930.0,102920.0,0.61003301]
[1738350183056,0.0001221,102930.0,102920.0,0.70738977]
[1738350183480,0.0011221,102930.0,102920.0,0.71638977]
[1738350183717,0.0001221,102930.0,102920.0,0.42340041]
[1738350183933,0.0001221,102930.0,102920.0,0.27365641]
[1738350184147,0.09936526,102930.0,102920.0,0.28440041]
[1738350184364,1.0021221,102930.0,102920.0,0.67950673]
[1738350184583,0.9521221,102930.0,102920.0,1.53238249]
[1738350184787,0.6764911,102930.0,102920.0,1.55238249]
[1738350185029,0.6764911,102930.0,102920.0,0.43440041]
[1738350185245,0.77373426,102930.0,102920.0,0.09215641]
[1738350185456,0.77373426,102930.0,102920.0,0.01525641]
[1738350186587,0.77373426,102930.0,102920.0,0.00925641]
[1738350186771,0.77373426,102930.0,102920.0,0.00025641]
[1738350186985,0.03,103020.0,102930.0,0.15]
[1738350186986,0.0197676,102990.0,102930.0,0.15]
[1738350187192,0.24291316,102980.0,102950.0,0.339954]
[1738350187396,0.24291316,102980.0,102950.0,0.339952]
[1738350187397,0.43712616,102980.0,102950.0,0.339952]
[1738350187602,0.09724316,102980.0,102960.0,0.339931]
[1738350187801,0.09724316,102980.0,102950.0,0.33995]
[1738350188015,0.145674,102970.0,102950.0,0.381515]
[1738350188211,0.09724316,102970.0,102950.0,0.575774]
[1738350188419,0.24293016,102960.0,102950.0,0.00048133]
[1738350188630,0.09724316,102960.0,102950.0,0.00048133]
[1738350189304,0.09724316,102960.0,102950.0,0.14618233]
[1738350189503,0.09724316,102960.0,102950.0,0.00048133]
[1738350189721,0.24293016,102960.0,102950.0,0.00048133]
[1738350190154,0.41593016,102960.0,102950.0,0.00048133]
[1738350190954,0.42645016,102960.0,102950.0,0.00048133]
[1738350192122,0.42645016,102960.0,102950.0,0.00148133]
[1738350192334,0.42645016,102960.0,102950.0,0.00048133]
[1738350192758,0.52880692,102960.0,102950.0,0.00148133]